fUSD/lending_fUSD_20251105
["ID","MTS","AMOUNT","RATE_DAILY","PERIOD"]
[393221508,1762341443576,500.0,0.00013,2]
[393221509,1762341443937,500.0,0.00013,2]
[393221510,1762341444289,600.0,0.00013001,2]
[393221511,1762341444916,600.0,0.00013001,2]
[393221512,1762341445082,500.0,0.00013,2]
[393221513,1762341445260,600.0,0.00013001,2]
[393221514,1762341445490,500.0,0.00013,2]
[393221515,1762341445608,600.0,0.00013001,2]
[393221516,1762341445889,500.0,0.00013,2]
[393221517,1762341445978,600.0,0.00013001,2]
[393221518,1762341446230,500.0,0.00013,2]
[393221519,1762341446392,600.0,0.00013001,2]
[393221520,1762341446585,500.0,0.00013,2]
[393221521,1762341446755,600.0,0.00013001,2]
[393221522,1762341447063,500.0,0.00013,2]
[393221523,1762341447222,300.01,0.00013001,2]
[393221524,1762341447249,299.99,0.00013001,2]
[393221525,1762341447475,500.0,0.00013,2]
[393221526,1762341448042,600.0,0.00013001,2]
[393221527,1762341448621,500.67380407,0.00013,2]
[393221528,1762341448656,600.0,0.00013001,2]
[393221529,1762341448807,600.0,0.00013001,2]
[393221530,1762341449192,600.0,0.00013001,2]
[393221531,1762341449545,600.0,0.00013001,2]
[393221532,1762341449957,600.0,0.00013001,2]
[393221533,1762341450332,600.0,0.00013001,2]
[393221534,1762341450829,600.0,0.00013,2]
[393221535,1762341451070,600.0,0.00013,2]
[393221536,1762341451450,600.0,0.00013,2]
[393221537,1762341451804,600.0,0.00013,2]
[393221538,1762341452144,600.0,0.00013,2]
[393221539,1762341452509,600.0,0.00013,2]
[393221540,1762341452833,600.0,0.00013,2]
[393221541,1762341453181,299.34619593,0.00013,2]
[393221542,1762341453204,300.65380407,0.00013,2]
[393221543,1762341453563,600.0,0.00013,2]
[393221544,1762341453927,600.0,0.00013,2]
[393221545,1762341454340,600.0,0.00013,2]
[393221546,1762341454683,600.0,0.00013,2]
[393221547,1762341455056,600.0,0.00013,2]
[393221548,1762341455407,1132.84674731,0.00013,2]
[393221550,1762341584282,-2248.76,0.00016035,2]
[393221551,1762341584295,-5502.49,0.00016035,2]
[393221552,1762341584304,-161.96924607,0.00016049,2]
[393221553,1762341584314,-500.0,0.00016063,2]
[393221554,1762341584323,-500.0,0.00016082,2]
[393221555,1762341584333,-185.97,0.00016155,2]
[393221556,1762341584344,-300.0,0.00016355,2]
[393221557,1762341584353,-500.0,0.00016356,2]
[393221558,1762341584363,-100.82075393,0.00016356,2]
[393221559,1762341584484,-599.17924607,0.00016356,2]
[393221560,1762341584514,-1200.0,0.00016591,2]
[393221561,1762341584543,-300.0,0.00016591,2]
[393221562,1762341584571,-174.25119187,0.00016592,2]
[393221563,1762341584602,-351.89511451,0.00016592,2]
[393221564,1762341584640,-1804.68786783,0.00016592,2]
[393221565,1762341584663,-599.17924607,0.00016592,2]
[393221566,1762341584973,-1200.0,0.00016592,2]
[393221567,1762341584985,-300.0,0.00016592,2]
[393221568,1762341584997,-174.25119187,0.00016592,2]
[393221569,1762341585010,-226.56956206,0.00016592,2]
[393221570,1762341585020,-125.32555245,0.00016672,2]
[393221571,1762341585032,-424.67444755,0.00016672,2]
[393221572,1762341585042,-500.0,0.00016673,2]
[393221573,1762341585054,-500.0,0.00016673,2]
[393221574,1762341585065,-380.01342028,0.00016673,2]
[393221575,1762341585097,-185.76310326,0.00016673,2]
[393221576,1762341585131,-500.0,0.00016673,2]
[393221577,1762341585161,-500.0,0.00016673,2]
[393221578,1762341585191,-500.0,0.00016673,2]
[393221579,1762341585222,-359.27923267,0.00016673,2]
[393221580,1762341585253,-361.27134346,0.00016673,2]
[393221581,1762341585282,-506.7793708,0.00016673,2]
[393221582,1762341585311,-500.0,0.00016673,2]
[393221583,1762341585342,-500.0,0.00016673,2]
[393221584,1762341585370,-157.39973233,0.00016673,2]
[393221585,1762341585398,-501.72530811,0.00016673,2]
[393221586,1762341585427,-355.57381874,0.00016691,2]
[393221587,1762341585787,-144.42618126,0.00016691,2]
[393221588,1762341585799,-500.0,0.00016691,2]
[393221589,1762341585808,-495.55697818,0.00016691,2]
[393221590,1762341585846,-4.44302182,0.00016691,2]
[393221591,1762341585877,-500.0,0.00016691,2]
[393221592,1762341585907,-500.0,0.00016691,2]
[393221593,1762341585937,-500.0,0.00016691,2]
[393221594,1762341585967,-500.0,0.00016691,2]
[393221595,1762341585999,-500.0,0.00016691,2]
[393221596,1762341586031,-500.0,0.00016691,2]
[393221597,1762341586063,-412.52572881,0.00016691,2]
[393221598,1762341586093,-545.18420362,0.00016691,2]
[393221599,1762341601276,1200.0,0.00016691,2]
[393221600,1762341603937,875.7040915,0.00016682,2]
[393221601,1762341603959,9181.3459085,0.00016682,2]
[393221602,1762341604012,300.0,0.00016691,2]
[393221603,1762341604114,500.0,0.00016673,2]
[393221604,1762341604557,18.6640915,0.00016673,2]
[393221605,1762341604580,481.3359085,0.00016673,2]
[393221606,1762341605291,163.3,0.00016682,2]
[393221607,1762341607477,200.0,0.00016691,2]
[393221608,1762341610732,300.0,0.00016691,2]
[393221609,1762341613007,8855.3740915,0.00016443,2]
[393221610,1762341613032,10000.01,0.00016443,2]
[393221611,1762341613054,10000.01,0.00016443,2]
[393221612,1762341613082,10000.01,0.00016443,2]
[393221613,1762341613105,10000.01,0.00016443,2]
[393221614,1762341613129,10000.01,0.00016443,2]
[393221615,1762341613153,10000.01,0.00016443,2]
[393221616,1762341613177,10000.01,0.00016443,2]
[393221617,1762341613200,10000.01,0.00016443,2]
[393221618,1762341613222,10000.01,0.00016443,2]
[393221619,1762341613732,-214.12191314,0.00016443,2]
[393221620,1762341618778,-162.73,0.00016443,2]
[393221621,1762341621594,-7924.3059085,0.00016443,2]
[393221622,1762341621710,-10000.01,0.00016443,2]
[393221623,1762341621823,-10000.01,0.00016443,2]
[393221624,1762341622036,-10000.01,0.00016443,2]
[393221625,1762341623501,-10000.01,0.00016443,2]
[393221626,1762341623636,-4103.98694356,0.00016443,2]
[393221627,1762341623665,-500.0,0.00016673,2]
[393221633,1762341634320,500.0,0.00016691,2]
[393221634,1762341635930,292.03611288,0.00016592,2]
[393221635,1762341635953,2207.96388712,0.00016592,2]
[393221650,1762341662140,460.0,0.00016691,2]
[393221651,1762341667195,1737.85,0.00016668,2]
[393221652,1762341673225,500.0,0.00016691,2]
[393221653,1762341677722,500.0,0.00016691,2]
[393221654,1762341679400,500.0,0.00016356,2]
[393221655,1762341688744,4094.19611288,0.00016592,2]
[393221656,1762341688778,500.20444305,0.00016592,2]
[393221657,1762341689002,174.25119187,0.00016592,2]
[393221658,1762341689587,425.64626727,0.00016691,2]
[393221659,1762341697520,3049.2188554,0.00016496,2]
[393221660,1762341721483,300.0,0.00016691,2]
[393221661,1762341726363,151.0,0.00016692,2]
[393221662,1762341726961,151.0,0.00016692,2]
[393221663,1762341727654,151.0,0.00016692,2]
[393221664,1762341728265,151.0,0.00016692,2]
[393221665,1762341728872,151.0,0.00016692,2]
[393221666,1762341729596,209.61201441,0.00016592,2]
[393221667,1762341729697,151.0,0.00016692,2]
[393221668,1762341730315,151.0,0.00016692,2]
[393221669,1762341730940,151.0,0.00016692,2]
[393221670,1762341731692,151.0,0.00016692,2]
[393221671,1762341732338,151.0,0.00016692,2]
[393221672,1762341733043,151.0,0.00016692,2]
[393221673,1762341733377,151.0,0.00016692,2]
[393221674,1762341733798,151.0,0.00016692,2]
[393221675,1762341734166,151.0,0.00016692,2]
[393221676,1762341734405,151.0,0.00016692,2]
[393221677,1762341735002,151.0,0.00016692,2]
[393221678,1762341735029,151.0,0.00016692,2]
[393221679,1762341735698,151.0,0.00016692,2]
[393221680,1762341735740,151.0,0.00016692,2]
[393221681,1762341736338,151.0,0.00016692,2]
[393221682,1762341736399,151.0,0.00016692,2]
[393221683,1762341736957,151.0,0.00016692,2]
[393221684,1762341737101,151.0,0.00016692,2]
[393221685,1762341737629,151.0,0.00016692,2]
[393221686,1762341738770,151.0,0.00016692,2]
[393221687,1762341739076,151.0,0.00016692,2]
[393221688,1762341739626,-2444.4038,0.00016692,2]
[393221689,1762341739751,151.0,0.00016692,2]
[393221690,1762341740318,151.0,0.00016692,2]
[393221691,1762341742903,-151.0,0.00016692,2]
[393221692,1762341742933,-151.0,0.00016692,2]
[393221693,1762341742962,-151.0,0.00016692,2]
[393221694,1762341743089,-4526.24351512,0.00016692,2]
[393221695,1762341743154,-10000.01,0.00016692,2]
[393221696,1762341748695,-279.6991,0.00016592,2]
[393221697,1762341748725,-151.0,0.00016692,2]
[393221698,1762341748754,-151.0,0.00016692,2]
[393221699,1762341748782,-151.0,0.00016692,2]
[393221700,1762341748811,-151.0,0.00016692,2]
[393221701,1762341748839,-151.0,0.00016692,2]
[393221702,1762341748870,-151.0,0.00016692,2]
[393221703,1762341748898,-151.0,0.00016692,2]
[393221704,1762341748926,-151.0,0.00016692,2]
[393221705,1762341749455,-7024.6118,0.00016692,2]
[393221706,1762341749499,-151.0,0.00016692,2]
[393221707,1762341749512,-9849.01,0.00016692,2]
[393221708,1762341754785,-500.0,0.00016356,2]
[393221709,1762341754813,-600.0,0.00016356,2]
[393221710,1762341754842,-151.0,0.00016692,2]
[393221711,1762341754870,-151.0,0.00016692,2]
[393221712,1762341754899,-151.0,0.00016692,2]
[393221713,1762341754930,-151.0,0.00016692,2]
[393221714,1762341754959,-151.0,0.00016692,2]
[393221715,1762341754987,-151.0,0.00016692,2]
[393221716,1762341755015,-151.0,0.00016692,2]
[393221717,1762341755175,-5686.01,0.00016692,2]
[393221718,1762341755206,-10000.01,0.00016692,2]
[393221719,1762341757797,-376.596,0.00016592,2]
[393221720,1762341757833,-9246.818,0.00016692,2]
[393221721,1762341760809,-10000.01,0.00016692,2]
[393221722,1762341781770,300.0,0.00016691,2]
[393221729,1762341804859,2500.0,0.00016592,2]
[393221733,1762341826364,500.0,0.00016691,2]
[393221736,1762341831954,6700.01,0.00016588,2]
[393221737,1762341831979,10000.01,0.00016588,2]
[393221738,1762341832000,10000.01,0.00016588,2]
[393221739,1762341832022,10000.01,0.00016588,2]
[393221740,1762341832045,10000.01,0.00016588,2]
[393221741,1762341832066,10000.01,0.00016588,2]
[393221742,1762341832086,10000.01,0.00016588,2]
[393221743,1762341832108,10000.01,0.00016588,2]
[393221744,1762341832132,10000.01,0.00016588,2]
[393221745,1762341832153,10000.01,0.00016588,2]
[393221749,1762341839590,-10000.01,0.00016588,2]
[393221750,1762341839722,-10000.01,0.00016588,2]
[393221751,1762341839862,-10000.01,0.00016588,2]
[393221752,1762341839976,-10000.01,0.00016588,2]
[393221753,1762341840083,-10000.01,0.00016588,2]
[393221754,1762341840238,-10000.01,0.00016588,2]
[393221755,1762341840452,-10000.01,0.00016588,2]
[393221756,1762341840562,-10000.01,0.00016588,2]
[393221757,1762341840691,-10000.01,0.00016588,2]
[393221758,1762341840823,-10000.01,0.00016588,2]
[393221759,1762341845680,-10000.01,0.00016588,2]
[393221760,1762341845814,-4997.7874274,0.00016588,2]
[393221761,1762341845973,4.4351452,0.00016587,2]
[393221762,1762341845996,295.5648548,0.00016587,2]
[393221763,1762341847466,500.0,0.00016691,2]
[393221765,1762341850979,-353667.27668488,0.00016692,2]
[393221766,1762341851002,-1000.0,0.00016692,2]
[393221767,1762341851024,-196.0,0.00016712,2]
[393221768,1762341851048,-4594.40055593,0.00016737,2]
[393221769,1762341851076,-351.89511446,0.00016779,2]
[393221770,1762341851099,-500.0,0.00016791,2]
[393221771,1762341851122,-197.52622172,0.00016791,2]
[393221772,1762341851150,-500.0,0.00016791,2]
[393221773,1762341851173,-200.0,0.00016858,2]
[393221774,1762341851198,-4594.40055593,0.00016883,2]
[393221775,1762341851222,-1000.0,0.00016905,2]
[393221776,1762341851245,-351.89511446,0.00016966,2]
[393221777,1762341851268,-500.0,0.00016989,2]
[393221778,1762341851296,-500.0,0.00016989,2]
[393221779,1762341851320,-780.22,0.00016994,2]
[393221780,1762341851344,-500.0,0.00016994,2]
[393221781,1762341851615,-500.0,0.00016994,2]
[393221782,1762341851644,-500.0,0.00016994,2]
[393221783,1762341851670,-500.0,0.00016994,2]
[393221784,1762341851697,-500.0,0.00016994,2]
[393221785,1762341851719,-286.38575262,0.00016994,2]
[393221788,1762341857985,-213.61424738,0.00016994,2]
[393221789,1762341858015,-500.0,0.00016994,2]
[393221790,1762341858044,-500.0,0.00016994,2]
[393221791,1762341858071,-500.0,0.00016994,2]
[393221792,1762341858098,-500.0,0.00016994,2]
[393221793,1762341858125,-500.0,0.00016994,2]
[393221794,1762341858157,-500.0,0.00016994,2]
[393221795,1762341858186,-500.0,0.00016994,2]
[393221796,1762341858215,-500.0,0.00016994,2]
[393221797,1762341858243,-601.08419191,0.00016994,2]
[393221798,1762341858271,-48.00242142,0.00016994,2]
[393221799,1762341858439,-274.60827858,0.00016994,2]
[393221800,1762341858466,-250.0,0.00016994,2]
[393221801,1762341858494,-250.0,0.00016994,2]
[393221802,1762341858521,-250.0,0.00016994,2]
[393221803,1762341858548,-250.0,0.00016994,2]
[393221804,1762341858575,-172.1351218,0.00016994,2]
[393221816,1762341894535,-500.0,0.00016691,2]
[393221819,1762341906204,9000.01,0.00016592,2]
[393221820,1762341906227,10000.01,0.00016592,2]
[393221821,1762341906251,10000.01,0.00016592,2]
[393221822,1762341906276,4254.3461,0.00016592,2]
[393221833,1762341939647,-6245.6639,0.00016592,2]
[393221836,1762341945720,-174.25119187,0.00016579,2]
[393221846,1762341980916,219.93444659,0.00016492,2]
[393221849,1762341996750,-10313.0,0.00016592,2]
[393221850,1762342002174,381.3683607,0.00016591,2]
[393221851,1762342004056,-51000.0,0.00016592,2]
[393221852,1762342012294,8757.90420987,0.000162,5]
[393221853,1762342021588,292.3005991,0.00016591,2]
[393221854,1762342021611,7.6994009,0.00016591,2]
[393221855,1762342022140,550.0,0.00016591,2]
[393221856,1762342023360,300.0,0.00016591,2]
[393221857,1762342023430,7898.11038203,0.00015,2]
[393221862,1762342113330,1244.20021707,0.00015,3]
[393221863,1762342113353,10000.01,0.00015,3]
[393221864,1762342113378,10491.66367882,0.00015,3]
[393221865,1762342143050,-500.0,0.00016591,2]
[393221866,1762342143072,-159500.0,0.00016592,2]
[393221898,1762342231944,-589.41127401,0.00016492,2]
[393221899,1762342231974,-4297.04308121,0.00016492,2]
[393221900,1762342231983,-150.0,0.00016492,2]
[393221901,1762342231993,-662.97702097,0.0001659,2]
[393221902,1762342232002,-300.0,0.00016591,2]
[393221903,1762342232011,-550.0,0.00016591,2]
[393221904,1762342232020,-1200.0,0.00016591,2]
[393221905,1762342232029,-553.16936146,0.00016592,2]
[393221906,1762342232042,-955.04341264,0.00016592,2]
[393221907,1762342232053,-491.14771511,0.00016592,2]
[393221908,1762342232065,-350.0,0.00016592,2]
[393221909,1762342232108,-727.65809693,0.00016592,2]
[393221910,1762342232118,-1542.16098001,0.00016592,2]
[393221923,1762342237903,-500.0,0.00016592,2]
[393221924,1762342237915,-300.0,0.00016592,2]
[393221925,1762342237927,-4712.18461572,0.00016592,2]
[393221926,1762342237942,-1240.12510115,0.00016592,2]
[393221928,1762342237953,-939.23805153,0.00016592,2]
[393221929,1762342238031,-980.26967385,0.00016592,2]
[393221937,1762342239908,-193.3251,0.00016492,2]
[393221938,1762342239919,-1688.81801784,0.00016592,2]
[393221939,1762342239930,-2718.43077279,0.00016592,2]
[393221940,1762342240013,-175243.09030097,0.00016592,2]
[393221941,1762342240023,-1000.0,0.00016592,2]
[393221942,1762342240032,-2500.0,0.00016592,2]
[393221943,1762342240042,-253.72,0.00016625,2]
[393221944,1762342240051,-300.0,0.00016636,2]
[393221945,1762342240060,-4886.45435522,0.00016648,2]
[393221946,1762342240069,-500.0,0.00016678,2]
[393221947,1762342240079,-11565.7493866,0.00016679,2]
[393221948,1762342240088,-186010.5559737,0.00016679,2]
[393221949,1762342240097,-4886.45435522,0.00016805,2]
[393221950,1762342240106,-13349.61,0.0001683,2]
[393221951,1762342240115,-1787.22367641,0.00016838,2]
[393221952,1762342240125,-202.99274996,0.00016938,2]
[393221953,1762342240134,-1787.22367632,0.00016956,2]
[393221954,1762342240143,-4886.45435522,0.00016961,2]
[393221955,1762342240152,-200.0,0.00016994,2]
[393221956,1762342240161,-1787.22367632,0.00017074,2]
[393221957,1762342240171,-900.0,0.000171,6]
[393221958,1762342240180,-4886.45435522,0.00017118,2]
[393221959,1762342240189,-1787.22367632,0.00017192,2]
[393221960,1762342240198,-1800.0,0.000172,6]
[393221961,1762342240207,-240.79252869,0.00017215,2]
[393221962,1762342240217,-546.71084981,0.00017221,2]
[393221963,1762342240226,-780.22,0.00017268,2]
[393221964,1762342240235,-4886.45435522,0.00017274,2]
[393221965,1762342240244,-2700.0,0.000173,6]
[393221966,1762342240253,-1787.22367632,0.0001731,2]
[393221967,1762342240266,-500.0,0.00017315,2]
[393221968,1762342240275,-501.72880029,0.00017339,2]
[393221969,1762342240284,-300.0,0.00017342,2]
[393221970,1762342240294,-3244.0,0.00017357,2]
[393221971,1762342240303,-500.0,0.00017399,2]
[393221972,1762342240313,-500.0,0.00017399,2]
[393221973,1762342240323,-3600.0,0.000174,6]
[393221974,1762342240333,-1787.22367632,0.00017428,2]
[393221975,1762342240342,-4886.45435522,0.00017431,2]
[393221976,1762342240351,-4500.0,0.000175,6]
[393221977,1762342240361,-2318.0,0.00017534,2]
[393221978,1762342240370,-780.22,0.00017542,2]
[393221979,1762342240379,-1787.22367632,0.00017546,2]
[393221980,1762342240389,-253.72,0.00017549,2]
[393221981,1762342240600,-4886.45435522,0.00017587,2]
[393221982,1762342240609,-900.0,0.000176,6]
[393221983,1762342240619,-2500.0,0.0001761,3]
[393221984,1762342240628,-2500.0,0.00017618,3]
[393221985,1762342240637,-2500.0,0.00017627,3]
[393221986,1762342240646,-215.33652726,0.0001763,2]
[393221987,1762342240656,-2500.0,0.00017636,3]
[393221988,1762342240665,-2500.0,0.00017645,3]
[393221989,1762342240674,-2500.0,0.00017654,3]
[393221990,1762342240684,-5295.0,0.00017654,2]
[393221991,1762342240693,-2500.0,0.00017662,3]
[393221992,1762342240703,-1787.22367632,0.00017664,2]
[393221993,1762342240712,-2500.0,0.00017671,3]
[393221994,1762342240721,-2500.0,0.0001768,3]
[393221995,1762342240731,-2500.0,0.00017689,3]
[393221996,1762342240740,-2500.0,0.00017698,3]
[393221997,1762342240749,-900.0,0.000177,6]
[393221998,1762342240759,-2500.0,0.00017706,3]
[393221999,1762342240768,-2500.0,0.00017715,3]
[393222000,1762342240777,-151.0,0.00017717,2]
[393222001,1762342240786,-151.0,0.00017717,2]
[393222002,1762342240795,-151.0,0.00017717,2]
[393222003,1762342240805,-151.0,0.00017717,2]
[393222004,1762342240814,-151.0,0.00017717,2]
[393222005,1762342240823,-151.0,0.00017717,2]
[393222006,1762342240833,-151.0,0.00017717,2]
[393222007,1762342240843,-151.0,0.00017717,2]
[393222008,1762342240852,-151.0,0.00017717,2]
[393222009,1762342240861,-151.0,0.00017717,2]
[393222010,1762342240871,-151.0,0.00017717,2]
[393222011,1762342240880,-322.6107,0.00017717,2]
[393222012,1762342240889,-500.0,0.00017717,2]
[393222013,1762342240897,-500.0,0.00017717,2]
[393222014,1762342240907,-500.0,0.00017717,2]
[393222015,1762342240915,-500.0,0.00017717,2]
[393222016,1762342240924,-500.0,0.00017717,2]
[393222017,1762342240933,-500.0,0.00017717,2]
[393222018,1762342240942,-500.0,0.00017717,2]
[393222019,1762342240951,-500.0,0.00017717,2]
[393222020,1762342240960,-500.0,0.00017717,2]
[393222021,1762342240969,-500.0,0.00017717,2]
[393222023,1762342240979,-500.0,0.00017717,2]
[393222024,1762342240989,-2500.0,0.00017724,3]
[393222026,1762342240998,-500.0,0.00017726,2]
[393222027,1762342241007,-600.0,0.00017726,2]
[393222028,1762342241016,-12001.43,0.00017728,2]
[393222029,1762342241026,-2500.0,0.00017733,3]
[393222030,1762342241035,-2500.0,0.00017742,3]
[393222031,1762342241043,-4886.45435522,0.00017744,2]
[393222032,1762342241052,-2500.0,0.0001775,3]
[393222033,1762342241061,-893.58488772,0.00017759,2]
[393222034,1762342241070,-2500.0,0.00017759,3]
[393222035,1762342241079,-1000.0,0.00017762,2]
[393222036,1762342241088,-182.109,0.00017768,2]
[393222037,1762342241097,-3203.843,0.00017768,2]
[393222038,1762342241106,-2500.0,0.00017768,3]
[393222039,1762342241117,-500.0,0.00017768,2]
[393222040,1762342241127,-150.0,0.00017768,2]
[393222041,1762342241136,-150.0,0.00017768,2]
[393222042,1762342241145,-500.0,0.00017768,2]
[393222043,1762342241155,-150.0,0.00017768,2]
[393222044,1762342241166,-500.0,0.00017768,2]
[393222045,1762342241175,-500.0,0.00017768,2]
[393222046,1762342241185,-150.0,0.00017768,2]
[393222047,1762342241194,-150.0,0.00017768,2]
[393222048,1762342241203,-295.33139851,0.00017768,2]
[393222049,1762342241213,-150.0,0.00017768,2]
[393222050,1762342241223,-150.0,0.00017768,2]
[393222051,1762342241232,-500.0,0.00017768,2]
[393222052,1762342241242,-500.0,0.00017768,2]
[393222053,1762342241251,-500.0,0.00017768,2]
[393222054,1762342241264,-150.0,0.00017768,2]
[393222055,1762342241274,-150.0,0.00017768,2]
[393222056,1762342241283,-150.0,0.00017768,2]
[393222057,1762342241293,-150.38503355,0.00017768,2]
[393222058,1762342241303,-500.0,0.00017768,2]
[393222059,1762342241311,-421.0,0.00017768,2]
[393222060,1762342241320,-150.0,0.00017768,2]
[393222061,1762342241329,-150.0,0.00017768,2]
[393222062,1762342241340,-209.05525812,0.00017768,2]
[393222063,1762342241349,-150.0,0.00017768,2]
[393222064,1762342241358,-150.0,0.00017768,2]
[393222065,1762342241368,-150.0,0.00017768,2]
[393222066,1762342241377,-150.0,0.00017768,2]
[393222067,1762342241386,-150.0,0.00017768,2]
[393222068,1762342241395,-150.0,0.00017768,2]
[393222069,1762342241405,-150.0,0.00017768,2]
[393222070,1762342241414,-2500.0,0.00017777,3]
[393222071,1762342241423,-1787.22367632,0.00017782,2]
[393222072,1762342241432,-2500.0,0.00017786,3]
[393222073,1762342241441,-1425.0,0.00017791,2]
[393222074,1762342241450,-2500.0,0.00017794,3]
[393222075,1762342241459,-1210.0,0.000178,2]
[393222076,1762342241469,-900.0,0.000178,6]
[393222077,1762342241478,-512.43340892,0.00017802,2]
[393222078,1762342241487,-2500.0,0.00017803,3]
[393222079,1762342241497,-2500.0,0.00017812,3]
[393222080,1762342241506,-780.22,0.00017816,2]
[393222081,1762342241515,-1000.0,0.00017819,2]
[393222082,1762342241524,-245.93901,0.0001782,2]
[393222083,1762342241534,-2500.0,0.00017821,3]
[393222084,1762342241543,-2500.0,0.0001783,3]
[393222085,1762342241552,-2500.0,0.00017838,3]
[393222086,1762342241561,-2500.0,0.00017847,3]
[393222087,1762342241570,-150.0,0.00017848,2]
[393222088,1762342241580,-2500.0,0.00017856,3]
[393222089,1762342241589,-200.0,0.00017856,2]
[393222090,1762342241598,-2500.0,0.00017865,3]
[393222091,1762342241607,-2500.0,0.00017874,3]
[393222092,1762342241618,-2500.0,0.00017882,3]
[393222093,1762342241627,-2500.0,0.00017891,3]
[393222094,1762342241637,-500.0,0.00017899,2]
[393222095,1762342241646,-239.56426196,0.000179,2]
[393222096,1762342241657,-2500.0,0.000179,3]
[393222097,1762342241666,-651.01225861,0.000179,2]
[393222098,1762342241675,-5000.0,0.000179,2]
[393222099,1762342241683,-900.0,0.000179,6]
[393222100,1762342241693,-416.49526835,0.000179,2]
[393222101,1762342241702,-346.55243185,0.000179,2]
[393222102,1762342241710,-467.75995131,0.000179,3]
[393222103,1762342241719,-428.89678196,0.000179,2]
[393222104,1762342241728,-1787.22367632,0.000179,2]
[393222105,1762342241737,-4886.45435522,0.000179,2]
[393222106,1762342241746,-500.0,0.00017905,2]
[393222107,1762342241755,-150.0,0.00017905,2]
[393222108,1762342241764,-500.0,0.00017905,2]
[393222109,1762342241773,-500.0,0.00017905,2]
[393222110,1762342241782,-500.0,0.00017905,2]
[393222111,1762342241794,-150.0,0.00017905,2]
[393222112,1762342241803,-150.0,0.00017905,2]
[393222113,1762342241812,-217.3955486,0.00017905,2]
[393222114,1762342241821,-541.19254604,0.00017905,2]
[393222115,1762342241830,-500.0,0.00017905,2]
[393222116,1762342241839,-500.0,0.00017905,2]
[393222117,1762342241850,-150.0,0.00017905,2]
[393222118,1762342241860,-151.13904288,0.00017905,2]
[393222119,1762342241869,-150.0,0.00017905,2]
[393222120,1762342241877,-500.0,0.00017905,2]
[393222121,1762342241886,-421.0,0.00017905,2]
[393222122,1762342241895,-150.0,0.00017905,2]
[393222123,1762342241904,-150.0,0.00017905,2]
[393222124,1762342241914,-150.0,0.00017905,2]
[393222125,1762342241924,-150.0,0.00017905,2]
[393222126,1762342241933,-245.93902,0.0001793,2]
[393222127,1762342241943,-1425.0,0.00017944,2]
[393222128,1762342241953,-180.47436555,0.00017953,2]
[393222129,1762342241962,-1000.0,0.0001797,2]
[393222130,1762342241971,-500.0,0.0001797,2]
[393222131,1762342241980,-1000.0,0.0001797,2]
[393222132,1762342241990,-500.0,0.0001797,2]
[393222133,1762342241999,-1000.0,0.0001797,2]
[393222134,1762342242009,-500.0,0.0001797,2]
[393222135,1762342242018,-500.0,0.0001797,2]
[393222136,1762342242027,-800.63275327,0.0001797,2]
[393222137,1762342242036,-1000.0,0.0001797,2]